bitfinex-derivatives/quotes_BTCF0:USTF0_20220102
["timestamp","ask_amount","ask_price","bid_price","bid_amount"]
[1641117198683,1.51538221,47347.0,47340.0,0.35986479]
[1641117199587,1.51538221,47347.0,47341.0,0.35986479]
[1641117199588,0.09003297,47347.0,47341.0,0.35986479]
[1641117200085,0.27603297,47347.0,47341.0,0.51286479]
[1641117200487,0.27603297,47347.0,47341.0,0.153]
[1641117201089,0.09003297,47346.0,47341.0,0.153]
[1641117201388,0.09003297,47346.0,47340.0,0.35986479]
[1641117202088,0.27503297,47346.0,47340.0,0.52186479]
[1641117202590,0.185,47346.0,47340.0,0.162]
[1641117203198,0.09003297,47345.0,47340.0,0.162]
[1641117203497,0.09003297,47345.0,47339.0,0.35986479]
[1641117204100,0.27103297,47345.0,47339.0,0.53086479]
[1641117204899,0.09003297,47344.0,47339.0,0.53086479]
[1641117206111,0.26403297,47344.0,47339.0,0.53886479]
[1641117207109,0.09003297,47343.0,47339.0,0.53886479]
[1641117207509,0.09003297,47343.0,47339.0,0.35986479]
[1641117208110,0.25903297,47343.0,47339.0,0.54486479]
[1641117208310,0.169,47343.0,47339.0,0.54486479]
[1641117209310,0.24716,47343.0,47339.0,0.54486479]
[1641117209514,0.09003297,47342.0,47339.0,0.35986479]
[1641117210213,0.26803297,47342.0,47339.0,0.53986479]
[1641117211616,0.09003297,47341.0,47339.0,0.35986479]
[1641117212216,0.27103297,47341.0,47339.0,0.168]
[1641117212416,1.58059421,47341.0,47339.0,0.168]
[1641117213318,1.39959421,47340.0,47339.0,0.168]
[1641117213519,1.53992988,47340.0,47336.0,0.35986479]
[1641117214220,1.72692988,47340.0,47336.0,0.52186479]
[1641117214419,0.09003297,47339.0,47336.0,0.162]
[1641117215020,0.11116365,47339.0,47336.0,0.162]
[1641117215421,0.001,47337.0,47336.0,0.162]
[1641117215620,0.001,47337.0,47333.0,0.35986479]
[1641117215821,0.11116365,47339.0,47333.0,0.35986479]
[1641117216222,0.15,47337.0,47333.0,0.52186479]
[1641117217143,0.15,47337.0,47333.0,0.162]
[1641117217144,1.45956124,47337.0,47333.0,0.162]
[1641117217927,1.39959421,47336.0,47333.0,0.162]
[1641117218328,1.39959421,47336.0,47333.0,0.333]
[1641117218726,0.09003297,47335.0,47333.0,0.333]
[1641117218928,1.39959421,47335.0,47333.0,0.333]
[1641117219427,1.39959421,47335.0,47333.0,0.171]
[1641117219631,0.09003297,47334.0,47331.0,0.35986479]
[1641117220128,0.09003297,47335.0,47331.0,0.35986479]
[1641117220327,0.18,47334.0,47331.0,0.54286479]
[1641117220729,2.64480271,47333.0,47331.0,0.54286479]
[1641117220928,2.72284271,47333.0,47331.0,0.54286479]
[1641117221329,0.05717962,47332.0,47331.0,0.54286479]
[1641117221528,0.28754826,47332.0,47331.0,0.183]
[1641117222132,0.28754826,47332.0,47329.0,0.35986479]
[1641117222330,0.47454826,47332.0,47327.0,0.35986479]
[1641117223132,0.41736864,47332.0,47327.0,0.35986479]
[1641117223332,0.09003297,47331.0,47327.0,0.35986479]
[1641117224332,0.27603297,47331.0,47327.0,0.42086479]
[1641117224739,0.02113447,47330.0,47327.0,0.42086479]
[1641117224935,0.11116744,47330.0,47327.0,0.42086479]
[1641117225835,0.11116744,47330.0,47327.0,0.061]
[1641117226235,0.30716744,47330.0,47326.0,0.35986479]
[1641117226636,0.09003297,47329.0,47328.0,0.35986479]
[1641117228238,0.28103297,47329.0,47328.0,0.35986479]
[1641117229642,0.09003297,47329.0,47328.0,0.35986479]
[1641117230238,0.27303297,47329.0,47328.0,0.53586479]
[1641117231540,0.09003297,47329.0,47328.0,0.35986479]
[1641117232346,0.27103297,47329.0,47328.0,0.53586479]
[1641117233443,0.27103297,47329.0,47328.0,0.176]
[1641117233744,0.09003297,47329.0,47324.0,0.35986479]
[1641117234344,0.26303297,47329.0,47324.0,0.53886479]
[1641117234946,0.173,47329.0,47324.0,0.53886479]
[1641117235146,0.35729585,47326.0,47324.0,0.53886479]
[1641117235547,0.35729585,47326.0,47324.0,0.35986479]
[1641117236348,0.35729585,47326.0,47324.0,0.55086479]
[1641117237052,0.35729585,47327.0,47325.0,0.35986479]
[1641117238251,0.52129585,47327.0,47325.0,0.54586479]
[1641117238553,0.164,47327.0,47326.0,0.35986479]
[1641117239767,0.59549309,47328.0,47326.0,0.35986479]
[1641117240268,0.77249309,47328.0,47326.0,0.54186479]
[1641117241567,0.59549309,47328.0,47326.0,0.35986479]
[1641117242264,0.77249309,47328.0,47326.0,0.54186479]
[1641117243064,0.59549309,47327.0,47326.0,0.54186479]
[1641117243665,0.59549309,47327.0,47326.0,0.35986479]
[1641117244263,0.77549309,47327.0,47326.0,0.54486479]
[1641117245672,0.59549309,47327.0,47326.0,0.35986479]
[1641117246268,0.181,47327.0,47326.0,0.54386479]
[1641117247771,0.28600642,47327.0,47326.0,0.35986479]
[1641117247972,0.10600642,47327.0,47326.0,0.35986479]
[1641117248170,0.88149951,47327.0,47326.0,0.35986479]
[1641117248371,1.06949951,47327.0,47326.0,0.50586479]
[1641117248973,0.47400642,47327.0,47326.0,0.50586479]
[1641117249273,1.66908101,47327.0,47326.0,0.146]
[1641117249471,0.56408101,47327.0,47326.0,0.146]
[1641117249671,0.37608101,47327.0,47323.0,0.02]
[1641117249871,0.18,47324.0,47323.0,0.02]
[1641117250372,0.18,47324.0,47323.0,0.187]
[1641117251173,0.27007459,47324.0,47323.0,0.187]
[1641117251673,0.27007459,47324.0,47323.0,0.02]
[1641117252374,0.44107459,47324.0,47323.0,0.197]
[1641117252573,0.26107459,47324.0,47323.0,0.197]
[1641117253575,0.09007459,47324.0,47323.0,0.02]
[1641117254275,0.28107459,47324.0,47323.0,0.02]
[1641117254876,0.28207459,47324.0,47323.0,0.02]
[1641117255681,1.21721635,47324.0,47323.0,0.02]
[1641117256081,0.11221635,47324.0,47323.0,0.02]
[1641117256278,1.40721635,47324.0,47323.0,0.02]
[1641117256679,1.40721635,47324.0,47316.0,0.35986479]
[1641117256877,0.18,47322.0,47316.0,0.35986479]
[1641117257081,0.18,47322.0,47314.0,0.35986479]
[1641117257380,0.18,47321.0,47314.0,0.35986479]
[1641117257778,0.59343947,47316.0,47314.0,0.35986479]
[1641117257977,0.67533947,47316.0,47314.0,0.35986479]
[1641117258380,0.67533947,47316.0,47314.0,0.54386479]
[1641117258381,0.84733947,47316.0,47314.0,0.54386479]
[1641117259081,0.2539,47316.0,47314.0,0.184]
[1641117259281,0.2539,47316.0,47315.0,0.3848728]
[1641117259881,0.0819,47316.0,47315.0,0.3848728]
[1641117260281,0.2549,47316.0,47315.0,0.5658728]
[1641117260684,0.27604293,47316.0,47315.0,0.181]
[1641117261686,0.05791121,47315.0,47314.0,0.60062445]
[1641117262287,0.24291121,47315.0,47314.0,0.73562445]
[1641117262992,0.26505607,47315.0,47301.0,0.35947278]
[1641117263188,1.285,47310.0,47301.0,0.35947278]
[1641117263495,0.20114994,47302.0,47301.0,0.30807278]
[1641117263687,1.30714994,47302.0,47292.0,1.31802868]
[1641117263889,1.30714994,47302.0,47289.0,1.31802868]
[1641117263890,0.18,47297.0,47289.0,1.31802868]
[1641117264088,0.02115353,47293.0,47289.0,1.31802868]
[1641117264488,0.18,47292.0,47289.0,1.31802868]
[1641117264787,0.14033567,47290.0,47289.0,1.31802868]
[1641117265190,0.14033567,47290.0,47282.0,1.9441]
[1641117265389,0.14033567,47290.0,47273.0,0.2]
[1641117265889,0.14033567,47290.0,47277.0,0.00854237]
[1641117266092,0.02115588,47282.0,47277.0,0.00854237]
[1641117266490,0.09236,47282.0,47277.0,0.00854237]
[1641117266690,0.09236,47282.0,47281.0,0.18]
[1641117267290,0.09236,47282.0,47281.0,0.18854237]
[1641117267489,0.09236,47282.0,47281.0,0.00854237]
[1641117267690,0.02115303,47289.0,47281.0,0.00854237]
[1641117268289,0.188,47289.0,47281.0,0.00854237]
[1641117268696,0.188,47289.0,47281.0,0.14887804]
[1641117269191,0.188,47289.0,47282.0,0.00854237]
[1641117269591,0.02115552,47283.0,47282.0,0.00854237]
[1641117269791,0.11451552,47283.0,47282.0,0.00854237]
[1641117269990,0.11451552,47283.0,47281.0,0.14033567]
[1641117270390,0.30351552,47283.0,47276.0,0.14033567]
[1641117270791,0.28236,47283.0,47276.0,0.14033567]
[1641117270991,0.28236,47283.0,47279.0,0.18]
[1641117271192,0.28236,47283.0,47277.0,0.00854259]
[1641117271392,0.28236,47283.0,47279.0,0.06]
[1641117271592,0.28236,47283.0,47279.0,0.18]
[1641117271991,0.28236,47283.0,47277.0,0.01833659]
[1641117272190,0.14033567,47285.0,47282.0,0.18]
[1641117272392,0.151,47283.0,47278.0,0.18]
[1641117272591,0.151,47283.0,47277.0,0.009794]
[1641117272791,0.151,47283.0,47278.0,0.00854206]
[1641117273091,0.151,47283.0,47282.0,0.18]
[1641117273291,0.151,47283.0,47278.0,0.18854206]
[1641117273491,0.151,47283.0,47282.0,0.18]
[1641117274390,0.088,47283.0,47282.0,0.18]
[1641117275392,0.088,47283.0,47279.0,0.18]
[1641117275594,0.14033567,47285.0,47278.0,0.18]
[1641117276395,0.28933567,47285.0,47278.0,0.18]
[1641117276599,0.28933567,47285.0,47278.0,0.77937454]
[1641117277197,0.28933567,47285.0,47277.0,0.60916854]
[1641117277597,0.28933567,47285.0,47277.0,0.009794]
[1641117277598,0.14033567,47285.0,47277.0,0.009794]
[1641117277798,0.35377016,47283.0,47280.0,1.43784947]
[1641117278397,0.35777016,47283.0,47280.0,1.43784947]
[1641117278598,0.35377016,47282.0,47279.0,1.43784947]
[1641117279801,0.35377016,47282.0,47279.0,1.60871953]
[1641117280301,0.44977016,47282.0,47279.0,1.60871953]
[1641117280502,0.44977016,47282.0,47279.0,1.43784947]
[1641117281102,0.44977016,47282.0,47281.0,0.18]
[1641117281302,0.44977016,47282.0,47279.0,1.43784947]
[1641117281707,0.35377016,47281.0,47278.0,1.60871953]
[1641117282403,0.43077016,47281.0,47278.0,1.60871953]
[1641117283405,0.43077016,47281.0,47278.0,1.78871953]
[1641117283606,0.35377016,47281.0,47278.0,1.78871953]
[1641117283806,0.35377016,47281.0,47278.0,1.60871953]
[1641117284107,0.35377016,47281.0,47278.0,1.78871953]
[1641117284309,0.37077016,47281.0,47278.0,1.78871953]
[1641117285108,0.37077016,47281.0,47279.0,0.17087006]
[1641117285709,0.35377016,47281.0,47279.0,0.17087006]
[1641117286310,0.47377016,47281.0,47279.0,0.17087006]
[1641117286513,0.47377016,47281.0,47278.0,1.43784947]
[1641117286712,0.12,47281.0,47277.0,0.009794]
[1641117287710,0.14033567,47285.0,47277.0,0.009794]
[1641117288324,0.21333567,47285.0,47277.0,0.009794]
[1641117289626,0.14033567,47285.0,47277.0,0.009794]
[1641117290323,0.29333567,47285.0,47277.0,0.009794]
[1641117291527,0.29333567,47285.0,47278.0,0.18]
[1641117291824,0.14033567,47285.0,47278.0,0.18]
[1641117292025,0.14033567,47285.0,47277.0,0.009794]
[1641117292229,0.29833567,47285.0,47277.0,0.189794]
[1641117292424,0.29833567,47285.0,47277.0,0.009794]
[1641117292625,0.29833567,47285.0,47283.0,0.18]
[1641117292826,0.29833567,47285.0,47277.0,0.009794]
[1641117293226,0.29833567,47285.0,47278.0,0.18]
[1641117293625,0.14033567,47285.0,47278.0,0.18]
[1641117294327,0.29433567,47285.0,47278.0,0.18]
[1641117295632,0.14033567,47285.0,47278.0,0.18]
[1641117296234,0.29533567,47285.0,47278.0,0.18]
[1641117297735,0.14033567,47285.0,47278.0,0.18]
[1641117298136,0.14033567,47285.0,47277.0,0.009794]
[1641117298333,0.29533567,47285.0,47277.0,0.009794]
[1641117299635,0.14033567,47285.0,47277.0,0.009794]
[1641117299835,0.14033567,47285.0,47276.0,0.14033567]
[1641117300235,0.33333567,47285.0,47276.0,0.14033567]
[1641117300435,0.33333567,47285.0,47278.0,0.18]
[1641117300836,0.33333567,47285.0,47276.0,0.14033567]
[1641117301036,0.33333567,47285.0,47278.0,0.18]
[1641117301738,0.14033567,47285.0,47278.0,0.18]
[1641117302237,0.32333567,47285.0,47278.0,0.18]
[1641117303037,0.32333567,47285.0,47276.0,0.14033567]
[1641117303436,0.32333567,47285.0,47278.0,0.18]
[1641117303638,0.14033567,47285.0,47278.0,0.18]
[1641117304138,0.14033567,47285.0,47276.0,0.14033567]
[1641117304339,0.32333567,47285.0,47276.0,0.14033567]
[1641117304938,0.32333567,47285.0,47277.0,0.18]
[1641117305142,0.32333567,47285.0,47274.0,0.18]
[1641117305438,0.32333567,47285.0,47278.0,0.18]
[1641117305638,0.14033567,47285.0,47278.0,0.18]
[1641117306241,0.32533567,47285.0,47278.0,0.18]
[1641117307539,0.32533567,47285.0,47276.0,0.18]
[1641117307743,0.8252289,47283.0,47282.0,0.35929351]
[1641117308239,1.0082289,47283.0,47282.0,0.35929351]
[1641117309139,1.0082289,47283.0,47281.0,0.59882252]
[1641117309339,0.27314798,47283.0,47281.0,0.59882252]
[1641117309740,0.09014798,47283.0,47281.0,0.59882252]
[1641117310350,0.182,47283.0,47281.0,0.59882252]
[1641117310642,0.182,47283.0,47281.0,0.82011029]
[1641117311745,0.8252289,47284.0,47281.0,0.82011029]
[1641117311944,0.8252289,47283.0,47282.0,0.36036453]
[1641117313143,0.91537859,47283.0,47282.0,0.36036453]
[1641117314245,1.10937859,47283.0,47282.0,0.36036453]
[1641117315648,0.91537859,47283.0,47282.0,0.54036453]
[1641117316248,1.05737859,47283.0,47282.0,0.54036453]
[1641117317149,0.9672289,47283.0,47280.0,0.22128777]
[1641117317349,0.9672289,47283.0,47282.0,0.18]
[1641117317551,0.14033567,47285.0,47282.0,0.29895777]
[1641117318152,0.09014366,47284.0,47283.0,0.82185404]
[1641117318650,0.99756457,47285.0,47283.0,0.82185404]
[1641117318852,0.17233567,47285.0,47283.0,0.82185404]
[1641117319454,0.17233567,47285.0,47283.0,0.60056627]
[1641117319753,0.09014385,47284.0,47282.0,0.60056627]
[1641117320253,0.17114385,47284.0,47282.0,0.60056627]
[1641117320655,0.081,47284.0,47283.0,0.60056627]
[1641117321854,0.14033567,47285.0,47283.0,0.60056627]
[1641117322255,0.26833567,47285.0,47283.0,0.60056627]
[1641117322754,0.26833567,47285.0,47284.0,0.60056627]
[1641117323255,0.38850628,47285.0,47284.0,0.60056627]
[1641117323458,1.30388,47285.0,47282.0,0.60056627]
[1641117323755,1.17588,47285.0,47282.0,0.60056627]
[1641117323959,1.05570939,47285.0,47282.0,0.60056627]
[1641117324256,1.24470939,47285.0,47282.0,0.60056627]
[1641117324457,0.91537372,47284.0,47281.0,0.60056627]
[1641117324956,0.09014482,47284.0,47281.0,0.60056627]
[1641117325159,0.32933567,47285.0,47277.0,0.14033567]
[1641117325559,0.12017359,47284.0,47277.0,0.14033567]
[1641117325958,0.35495479,47280.0,47279.0,0.84084314]
[1641117326558,0.59159132,47281.0,47279.0,0.84084314]
[1641117327257,0.59159132,47281.0,47278.0,1.00574875]
[1641117327457,0.59159132,47281.0,47279.0,0.18]
[1641117327860,0.35492287,47280.0,47279.0,0.84084314]
[1641117330160,0.41593287,47280.0,47279.0,0.84084314]
[1641117330359,0.59693287,47280.0,47279.0,0.84084314]
[1641117330560,0.36219219,47280.0,47278.0,0.16490561]
[1641117331362,0.12118219,47279.0,47278.0,0.16490561]
[1641117331559,0.12118219,47279.0,47278.0,0.84146167]
[1641117331560,0.21133006,47279.0,47278.0,0.84146167]
[1641117332361,0.40233006,47279.0,47278.0,0.84146167]
[1641117332963,1.10978562,47279.0,47274.0,0.16490561]
[1641117333263,1.10878562,47279.0,47274.0,0.16490561]
[1641117333664,0.06580863,47278.0,47274.0,0.16490561]
[1641117334263,0.24780863,47278.0,47274.0,0.16490561]
[1641117334565,0.24780863,47278.0,47277.0,0.36032763]
[1641117334764,0.8390662,47278.0,47277.0,0.36032763]
[1641117335366,0.24780863,47278.0,47277.0,0.36032763]
[1641117335566,1.16560316,47278.0,47276.0,0.36032763]
[1641117336168,0.98360316,47278.0,47276.0,0.36032763]
[1641117336369,1.16460316,47278.0,47276.0,0.36032763]
[1641117336567,1.16460316,47278.0,47275.0,0.36032763]
[1641117337582,0.98360316,47278.0,47275.0,0.36032763]
[1641117337781,0.98360316,47278.0,47275.0,0.54032763]
[1641117338385,1.07844638,47278.0,47275.0,0.36032763]
[1641117338682,0.59111543,47277.0,47275.0,0.36032763]
[1641117339082,0.84192406,47278.0,47274.0,0.98510385]
[1641117339281,0.84192406,47278.0,47275.0,0.18]
[1641117339682,0.65692406,47278.0,47275.0,0.18]
[1641117339881,0.65692406,47278.0,47275.0,0.32364218]
[1641117340081,0.65692406,47278.0,47275.0,0.14364218]
[1641117340283,0.84192406,47278.0,47274.0,0.84146167]
[1641117340484,0.92165406,47278.0,47274.0,0.84146167]
[1641117341087,0.92165406,47278.0,47275.0,0.14362651]
[1641117341284,0.33053863,47278.0,47275.0,0.14362651]
[1641117341883,0.14553863,47278.0,47275.0,0.14362651]
[1641117342084,0.14553863,47278.0,47276.0,0.60053345]
[1641117342284,0.32653863,47278.0,47276.0,0.60053345]
[1641117342487,0.09175287,47277.0,47276.0,0.60053345]
[1641117343087,0.6828683,47277.0,47274.0,0.60053345]
[1641117343487,0.6828683,47277.0,47274.0,0.74465849]
[1641117344387,0.8618683,47277.0,47274.0,0.74465849]
[1641117345888,0.6828683,47277.0,47274.0,0.74465849]
[1641117346291,0.8628683,47277.0,47274.0,0.74465849]
[1641117347693,0.6828683,47277.0,47274.0,0.74465849]
[1641117348293,0.8628683,47277.0,47274.0,0.74465849]
[1641117348796,0.59111543,47276.0,47273.0,0.62053345]
[1641117349595,0.12019875,47275.0,47273.0,0.02]
[1641117349795,0.12019875,47275.0,47274.0,0.12783669]
[1641117350198,0.12019875,47276.0,47274.0,0.12783669]
[1641117350396,0.30619875,47275.0,47274.0,0.12783669]
[1641117350596,0.39635811,47275.0,47273.0,0.02]
[1641117350995,0.12019875,47274.0,47273.0,0.02]
[1641117351195,0.27615936,47275.0,47273.0,0.02]
[1641117351598,1.39070845,47274.0,47273.0,0.62114169]
[1641117351797,1.51090836,47274.0,47273.0,0.62114169]
[1641117352196,1.51090836,47274.0,47273.0,0.74903665]
[1641117352401,1.69790836,47274.0,47273.0,0.74903665]
[1641117352800,1.69790836,47274.0,47273.0,0.62114169]
[1641117352998,1.57770845,47274.0,47273.0,0.62114169]
[1641117353598,1.57770845,47274.0,47273.0,0.74903665]
[1641117354200,1.39070845,47274.0,47273.0,0.74903665]
[1641117354398,1.57770845,47274.0,47273.0,0.62114169]
[1641117354599,0.27715936,47274.0,47273.0,0.02]
[1641117355499,0.41749503,47274.0,47273.0,0.02]
[1641117355700,0.23049503,47274.0,47273.0,0.02]
[1641117356100,0.3506971,47274.0,47273.0,0.02]
[1641117356300,0.5366971,47274.0,47273.0,0.02]
[1641117356902,0.5376971,47274.0,47273.0,0.02]
[1641117357103,0.41749503,47274.0,47273.0,0.02]
[1641117357703,0.23149503,47274.0,47273.0,0.02]
[1641117358308,0.53769886,47274.0,47273.0,0.02]
[1641117359803,0.35169886,47274.0,47273.0,0.02]
[1641117360402,0.53869886,47274.0,47273.0,0.02]
[1641117361104,0.53769886,47274.0,47273.0,0.02]
[1641117361706,0.35069886,47274.0,47273.0,0.02]
[1641117362206,0.35169886,47274.0,47273.0,0.02]
[1641117362406,0.53969886,47274.0,47273.0,0.02]
[1641117363808,0.35169886,47274.0,47273.0,0.02]
[1641117364415,0.53969886,47274.0,47273.0,0.02]
[1641117365711,0.35169886,47274.0,47273.0,0.02]
[1641117366414,0.53669886,47274.0,47273.0,0.02]
[1641117367917,0.35169886,47274.0,47273.0,0.02]
[1641117368418,0.53669886,47274.0,47273.0,0.02]
[1641117369717,2.79952199,47274.0,47273.0,0.02]
[1641117370533,2.98452199,47274.0,47273.0,0.02]
[1641117370736,3.00568377,47274.0,47273.0,0.02]
[1641117371736,2.82068377,47274.0,47273.0,0.02]
[1641117372438,3.00668377,47274.0,47273.0,0.02]
[1641117373838,2.82068377,47274.0,47273.0,0.02]
[1641117374437,3.00568377,47274.0,47273.0,0.02]
[1641117375841,2.82068377,47274.0,47273.0,0.02]
[1641117376441,3.00468377,47274.0,47273.0,0.02]
[1641117376940,3.18468377,47274.0,47273.0,0.02]
[1641117377745,3.00068377,47274.0,47273.0,0.02]
[1641117378343,3.90205475,47274.0,47273.0,0.02]
[1641117378541,4.08805475,47274.0,47273.0,0.02]
[1641117380146,3.90805475,47274.0,47273.0,0.02]
[1641117380344,3.72205475,47274.0,47273.0,0.02]
[1641117380541,3.90905475,47274.0,47273.0,0.02]
[1641117381343,1.46123162,47274.0,47273.0,0.02]
[1641117381942,1.27423162,47274.0,47273.0,0.02]
[1641117382442,1.45823162,47274.0,47273.0,0.02]
[1641117382847,0.55686064,47274.0,47273.0,0.02]
[1641117383851,1.66892126,47274.0,47273.0,0.02]
[1641117384445,1.85292126,47274.0,47273.0,0.02]
[1641117385448,1.83075948,47274.0,47273.0,0.02]
[1641117385646,1.71055565,47274.0,47273.0,0.02]
[1641117385846,1.38621998,47274.0,47273.0,0.16033567]
[1641117386046,1.38621998,47274.0,47273.0,0.86168767]
[1641117386047,0.09015936,47274.0,47273.0,0.86168767]
[1641117386445,0.28315936,47274.0,47273.0,0.86168767]
[1641117387049,1.29606062,47278.0,47273.0,0.27033998]
[1641117387247,1.29606062,47278.0,47275.0,0.18]
[1641117387447,0.09015582,47278.0,47275.0,0.18]
[1641117388050,1.29606062,47280.0,47276.0,0.60089029]
[1641117388648,0.12018934,47279.0,47276.0,0.60089029]
[1641117389652,1.29606062,47280.0,47277.0,0.36053829]
[1641117390150,0.1201874,47279.0,47278.0,0.36053829]
[1641117390351,0.1201874,47279.0,47278.0,0.60719829]
[1641117390556,1.29606062,47280.0,47278.0,0.60719829]
[1641117390757,1.29606062,47280.0,47278.0,0.24666]
[1641117390957,1.37020331,47281.0,47278.0,0.06666]
[1641117391458,1.56015485,47285.0,47280.0,0.18]
[1641117391658,0.90137098,47295.0,47284.0,0.18]
[1641117391856,0.90137098,47295.0,47288.0,0.14033567]
[1641117392060,0.1201704,47292.0,47288.0,0.22150567]
[1641117392259,0.1201704,47292.0,47291.0,0.18]
[1641117392658,0.1201704,47294.0,47291.0,0.18]
[1641117392859,0.14033567,47298.0,47288.0,0.39750567]
[1641117393459,0.12015721,47297.0,47288.0,0.39750567]
[1641117393660,0.12015721,47297.0,47290.0,0.36049736]
[1641117394461,0.05912032,47296.0,47291.0,0.36049736]
[1641117395062,0.12015721,47295.0,47291.0,0.36049736]
[1641117395770,0.35384975,47294.0,47288.0,0.14033567]
[1641117396264,0.12015721,47293.0,47288.0,0.14033567]
[1641117396466,0.41199866,47292.0,47291.0,0.18]
[1641117396665,0.35384975,47292.0,47291.0,0.18]
[1641117396965,0.08387,47295.0,47291.0,0.18]
[1641117397164,0.14033567,47298.0,47291.0,0.18]
[1641117397466,0.35375345,47293.0,47291.0,0.18]
[1641117397865,0.35375345,47293.0,47288.0,0.14033567]
[1641117398467,0.08291886,47292.0,47288.0,0.32933567]
[1641117398867,0.43667231,47292.0,47288.0,0.32933567]
[1641117399968,0.08291886,47292.0,47288.0,0.14033567]
[1641117400568,0.08291886,47292.0,47288.0,0.33033567]
[1641117401872,0.08291886,47292.0,47288.0,0.14033567]
[1641117402670,0.08291886,47292.0,47288.0,0.33033567]
[1641117404074,0.08291886,47292.0,47288.0,0.14033567]
[1641117404589,0.08291886,47292.0,47288.0,0.33033567]
[1641117406095,0.08291886,47292.0,47290.0,0.18]
[1641117406693,0.08291886,47292.0,47288.0,0.33233567]
[1641117406891,0.08291886,47292.0,47291.0,0.18]
[1641117408497,0.08291886,47292.0,47291.0,0.372]
[1641117409795,0.08291886,47292.0,47291.0,0.192]
[1641117412100,0.08291886,47292.0,47288.0,0.14033567]
[1641117412300,0.17238886,47292.0,47288.0,0.14033567]
[1641117412501,0.17238886,47292.0,47288.0,0.32833567]
[1641117414000,0.17238886,47292.0,47288.0,0.14033567]
[1641117414503,0.17238886,47292.0,47288.0,0.32833567]
[1641117415902,0.17238886,47292.0,47288.0,0.14033567]
[1641117416103,0.09014244,47291.0,47289.0,0.35980035]
[1641117416503,0.09014244,47291.0,47289.0,0.54680035]
[1641117417905,0.09014244,47291.0,47289.0,0.35980035]
[1641117418506,0.09014244,47291.0,47289.0,0.54680035]
[1641117420005,0.09014244,47291.0,47289.0,0.35980035]
[1641117420506,0.09014244,47291.0,47289.0,0.54680035]
[1641117421307,1.50515625,47291.0,47289.0,0.187]
[1641117421708,0.09014244,47291.0,47289.0,0.187]
[1641117421906,0.09014244,47291.0,47284.0,0.35980035]
[1641117422506,0.09014244,47291.0,47284.0,0.54680035]
[1641117423308,0.09014244,47291.0,47286.0,0.18]
[1641117423708,0.09014244,47291.0,47287.0,0.18]
[1641117424612,0.09014244,47291.0,47287.0,0.367]
[1641117425111,0.09014244,47291.0,47287.0,0.187]
[1641117425811,0.09014244,47291.0,47284.0,0.35980035]
[1641117426013,0.09014244,47291.0,47287.0,0.18]
[1641117426713,0.09014244,47291.0,47287.0,0.367]
[1641117427114,0.09014244,47291.0,47287.0,0.187]
[1641117428015,0.09014244,47291.0,47286.0,0.18]
[1641117428715,0.09014244,47291.0,47286.0,0.367]
[1641117430016,0.09014244,47291.0,47286.0,0.18]
[1641117430615,0.09014244,47291.0,47286.0,0.367]
[1641117431816,1.3888285,47291.0,47286.0,0.367]
[1641117432118,1.3888285,47291.0,47286.0,0.18]
[1641117432318,1.3888285,47291.0,47287.0,0.18]
[1641117432717,1.3888285,47291.0,47286.0,0.187]
[1641117433018,1.3888285,47291.0,47287.0,0.18]
[1641117433217,0.09014244,47291.0,47287.0,0.18]
[1641117433817,0.09014244,47291.0,47287.0,0.189794]
[1641117434017,0.09014244,47291.0,47290.0,0.18]
[1641117434618,0.09014244,47291.0,47290.0,0.377]
[1641117436618,0.09014244,47291.0,47290.0,0.574]
[1641117438022,0.09014244,47291.0,47290.0,0.18]
[1641117438723,0.09014244,47291.0,47290.0,0.375]
[1641117439723,0.09014244,47291.0,47290.0,0.195]
[1641117439921,0.09014244,47291.0,47289.0,0.18]
[1641117440322,1.3888285,47291.0,47290.0,0.88424024]
[1641117440727,1.3888285,47291.0,47290.0,0.59966726]
[1641117441023,1.3888285,47291.0,47289.0,0.97666726]
[1641117442123,1.3888285,47291.0,47289.0,0.59966726]
[1641117442324,1.3888285,47291.0,47289.0,0.77966726]
[1641117442727,1.3888285,47291.0,47289.0,0.97366726]
[1641117443024,0.09014244,47290.0,47289.0,1.21353416]
[1641117444124,0.09014244,47290.0,47289.0,1.01953416]
[1641117444326,1.3888285,47290.0,47289.0,0.18]
[1641117444527,1.3888285,47290.0,47288.0,0.83953416]
[1641117444726,1.3888285,47290.0,47289.0,0.375]
[1641117445228,1.29868606,47290.0,47289.0,0.375]
[1641117445526,1.3888285,47290.0,47289.0,0.375]
[1641117446127,1.29868606,47290.0,47289.0,0.18]
[1641117446326,1.29868606,47290.0,47288.0,0.83953416]
[1641117446528,1.29868606,47290.0,47289.0,0.18]
[1641117446727,1.29868606,47290.0,47289.0,0.374]
[1641117447328,1.29868606,47290.0,47289.0,0.194]
[1641117447530,1.29868606,47290.0,47289.0,0.374]
[1641117448028,1.29868606,47290.0,47289.0,0.18]
[1641117448629,1.29868606,47290.0,47289.0,0.374]
[1641117450633,1.29868606,47290.0,47289.0,0.18]
[1641117450834,1.29868606,47290.0,47289.0,0.374]
[1641117452638,1.29868606,47290.0,47289.0,0.18]
[1641117452837,1.29868606,47290.0,47289.0,0.373]
[1641117453450,1.29868606,47290.0,47289.0,0.193]
[1641117454049,0.09014244,47291.0,47287.0,0.83953416]
[1641117454448,0.09014244,47291.0,47289.0,0.18]
[1641117455152,0.09014244,47291.0,47290.0,0.36056124]
[1641117456653,0.09014244,47291.0,47290.0,0.55256124]
[1641117457654,0.09014244,47291.0,47290.0,0.192]
[1641117457856,1.3875546,47291.0,47290.0,0.192]
[1641117458056,1.3875546,47291.0,47288.0,0.54056124]
[1641117458656,1.3875546,47291.0,47288.0,0.73356124]
[1641117459857,1.3875546,47291.0,47288.0,0.55356124]
[1641117460661,1.3875546,47291.0,47288.0,0.36056124]
[1641117460858,1.3875546,47291.0,47288.0,0.55256124]
[1641117461961,0.09014244,47291.0,47288.0,0.36056124]
[1641117462163,1.50515625,47291.0,47286.0,0.74108498]
[1641117462361,0.12017323,47290.0,47286.0,0.14033567]
[1641117462561,1.50515625,47291.0,47286.0,0.14033567]
[1641117462762,1.50515625,47291.0,47286.0,0.32633567]
[1641117463166,1.29701387,47288.0,47286.0,0.32633567]
[1641117463463,1.29701387,47288.0,47286.0,0.186]
[1641117463663,0.09064079,47287.0,47286.0,0.186]
[1641117464063,1.29701387,47288.0,47285.0,0.36056124]
[1641117464464,0.09014244,47287.0,47285.0,0.36056124]